fUSD/lending_fUSD_20240125
["ID","MTS","AMOUNT","RATE_DAILY","PERIOD"]
[312758221,1706198949422,-513.6393,0.00022998,2]
[312758222,1706198949443,-18284.5904468,0.00022998,2]
[312758223,1706198958202,-393.43491174,0.000229,2]
[312758224,1706198958223,-26637.68308826,0.00022998,2]
[312758225,1706198969687,1468.24884836,0.00021846,7]
[312758226,1706198969708,2000.0,0.00021846,7]
[312758227,1706198969730,188.68307416,0.00021846,7]
[312758228,1706198970351,-283.42342633,0.00022996,2]
[312758229,1706198970371,-4251.93051247,0.00022996,2]
[312758230,1706198970391,-1418.26758153,0.00022997,2]
[312758231,1706198970412,-133145.25847967,0.00022998,2]
[312758256,1706199034221,-771.72677312,0.000229,2]
[312758258,1706199034230,-630.52328389,0.000229,2]
[312758260,1706199034241,-5.35837493,0.000229,2]
[312758262,1706199034251,-759.00924322,0.000229,2]
[312758264,1706199034262,-240.99075678,0.000229,2]
[312758266,1706199034271,-25.13822146,0.00022996,2]
[312758269,1706199034290,-130.09350833,0.00022996,2]
[312758271,1706199034300,-498.32649167,0.00022997,2]
[312758274,1706199034319,-1409.78153758,0.00022997,2]
[312758275,1706199034329,-91.89197075,0.00022997,2]
[312758276,1706199034338,-2860.13141292,0.00022998,2]
[312758277,1706199034349,-191851.5753423,0.00022998,2]
[312758278,1706199034365,-4293.22070096,0.00022998,2]
[312758279,1706199034401,-10978.99999995,0.00022998,2]
[312758280,1706199034412,-543.29728188,0.00022998,2]
[312758282,1706199034423,-480.00571192,0.00022998,2]
[312758284,1706199034434,-272.46365372,0.00022998,2]
[312758286,1706199034445,-1974.8225,0.00022998,2]
[312758289,1706199034467,-18362.08082362,0.00022998,2]
[312758291,1706199034478,-320.6391067,0.00022998,2]
[312758295,1706199034501,-32.30454475,0.00022998,2]
[312758297,1706199034513,-4133.54788556,0.00022998,2]
[312758472,1706199037917,-477.72837383,0.00022998,2]
[312758473,1706199038125,-1343.29667571,0.00022998,2]
[312758474,1706199038153,-90424.67560383,0.00022998,2]
[312758475,1706199038162,-202.51963177,0.00022999,2]
[312758476,1706199038170,-443948.39542984,0.00022999,2]
[312758477,1706199038179,-178.81599619,0.00022999,2]
[312758478,1706199038188,-219.68112856,0.00022999,2]
[312758479,1706199038197,-1980.59590073,0.00023,2]
[312758480,1706199038205,-2485285.88409533,0.00023,2]
[312758484,1706199038266,-2563.06832839,0.00023,2]
[312758486,1706199038277,-703.75012937,0.00023,2]
[312758489,1706199038288,-4569226.86462302,0.00023,2]
[312758491,1706199038299,-155644.90766164,0.00023,2]
[312758493,1706199038311,-3704.77177377,0.00023,2]
[312758496,1706199038323,-3779.24952656,0.00023,2]
[312758525,1706199038596,-0.11543971,0.00023,2]
[312758530,1706199038629,-2610.40666984,0.00023,2]
[312758537,1706199038696,-4976.94432147,0.00023,2]
[312758539,1706199038707,-4758.74190659,0.00023,2]
[312758542,1706199038719,-917.09202498,0.00023,2]
[312758544,1706199038736,-17491.42736436,0.00023,2]
[312758546,1706199038747,-350.01634122,0.00023,2]
[312758549,1706199038758,-7511.69383817,0.00023,2]
[312758558,1706199038836,-22241.65933848,0.00023,2]
[312758734,1706199040550,-634.66,0.00023,2]
[312758776,1706199041013,-94273.3340959,0.00023,2]
[312758778,1706199041024,-269.2302333,0.00023,2]
[312758784,1706199041070,-510.22419162,0.00023,2]
[312758787,1706199041085,-1758.93979561,0.00023,2]
[312758789,1706199041096,-2969.51007379,0.00023,2]
[312758791,1706199041108,-793.855,0.00023,2]
[312758792,1706199041169,-7934.56179113,0.00023,2]
[312758793,1706199041180,-467.17556613,0.00023,2]
[312758794,1706199041256,-346.25354948,0.00023,2]
[312758795,1706199041268,-251.7165,0.00023,2]
[312758796,1706199041279,-10298.12651512,0.00023,2]
[312758797,1706199041291,-4265.39244857,0.00023,2]
[312758798,1706199041304,-3254.98910633,0.00023,2]
[312758857,1706199042964,-450.0,0.00023,2]
[312758858,1706199043000,-450.0,0.00023,2]
[312758859,1706199043012,-2945.30622556,0.00023,2]
[312758860,1706199043023,-1118.38903391,0.00023,2]
[312758861,1706199043035,-10482.54749995,0.00023,2]
[312758862,1706199043056,-450.0,0.00023,2]
[312758863,1706199043203,-18.01649996,0.00023,2]
[312758865,1706199043230,-7951.0704,0.00023,2]
[312758867,1706199043241,-523.41583691,0.00023,2]
[312758882,1706199045982,-252.91500454,0.00023,2]
[312758883,1706199045994,-545.175,0.00023,2]
[312758884,1706199046227,-2173.85000002,0.00023,2]
[312758885,1706199046239,-5960.7576271,0.00023,2]
[312758894,1706199049048,-2518.20195677,0.00023,2]
[312758895,1706199049059,-496.28,0.00023,2]
[312758896,1706199049070,-892.9623729,0.00023,2]
[312758897,1706199049099,-0.03490947,0.00023,2]
[312758901,1706199066477,622.17405158,0.00022078,2]
[312758902,1706199075391,419.9,0.00020857,2]
[312758903,1706199135974,957.92594842,0.00022076,2]
[312758904,1706199135998,2000.0,0.00022076,2]
[312758905,1706199136020,233.33802694,0.00022076,2]
[312758906,1706199142387,1766.66197306,0.00022234,3]
[312758907,1706199142414,733.33802694,0.00022234,3]
[312758908,1706199158293,484.88,0.0002212,2]
[312758909,1706199158321,250.0,0.00022173,2]
[312758910,1706199159837,165.18,0.00017696,2]
[312758911,1706199176725,150.78,0.00022009,2]
[312758912,1706199247708,215.82197306,0.00021974,2]
[312758913,1706199247733,87.31802694,0.00021974,2]
[312758914,1706199253152,1000.0,0.00021973,2]
[312758915,1706199255981,500.0,0.00022007,2]
[312758916,1706199287206,169.2,0.00021968,2]
[312758917,1706199308841,243.48197306,0.00021951,2]
[312758918,1706199308863,58.80802694,0.00021951,2]
[312758919,1706199355734,160.86,0.00022116,2]
[312758920,1706199356188,160.86,0.00022231,2]
[312758921,1706199375688,200.0,0.00021826,2]
[312758922,1706199383587,1230.7888989,0.00021834,2]
[312758923,1706199383609,769.2111011,0.00021834,2]
[312758924,1706199434653,250.0,0.00021918,2]
[312758925,1706199488893,980.7888989,0.00021968,2]
[312758926,1706199488915,228.6011011,0.00021968,2]
[312758927,1706199511701,1771.3988989,0.00021795,2]
[312758928,1706199511724,2000.0,0.00021795,2]
[312758929,1706199511746,2000.0,0.00021795,2]
[312758930,1706199511769,2000.0,0.00021795,2]
[312758931,1706199511793,2000.0,0.00021795,2]
[312758932,1706199511819,2000.0,0.00021795,2]
[312758933,1706199511841,2000.0,0.00021795,2]
[312758934,1706199511863,2000.0,0.00021795,2]
[312758935,1706199511886,2000.0,0.00021795,2]
[312758936,1706199511910,2000.0,0.00021795,2]
[312758937,1706199511932,2000.0,0.00021795,2]
[312758938,1706199511954,2000.0,0.00021795,2]
[312758939,1706199512203,128.6011011,0.00021795,2]
[312758940,1706199518895,1871.3988989,0.00021822,2]
[312758941,1706199518916,2000.0,0.00021822,2]
[312758942,1706199518936,706.6011011,0.00021822,2]
[312758943,1706199551201,1037.59,0.00021756,2]
[312758944,1706199555661,176.54,0.00022,2]
[312758945,1706199563534,79.2688989,0.00019788,2]
[312758946,1706199563557,360.7311011,0.00019788,2]
[312758947,1706199563734,440.0,0.00022052,2]
[312758948,1706199639592,158.44098589,0.00022052,2]
[312758949,1706199647893,1040.82791301,0.00021852,2]
[312758950,1706199647920,2153.89354828,0.00021852,2]
[312758951,1706199654058,150.85586616,0.00022,2]
[312758952,1706199662490,592.94,0.00021706,2]
[312758953,1706199667874,294.08109517,0.00021852,2]
[312758954,1706199668535,151.57,0.00021665,2]
[312758955,1706199696932,250.0,0.00021635,2]
[312758956,1706199706608,610.8682776,0.00022,2]
[312758957,1706199707949,1228.7364261,0.00020486,2]
[312758958,1706199710040,771.2635739,0.00022,2]
[312758959,1706199710062,2000.0,0.00022,2]
[312758960,1706199710084,2000.0,0.00022,2]
[312758961,1706199710107,1321.68010043,0.00022,2]
[312758962,1706199710237,155.0,0.00022,2]
[312758963,1706199712015,150.0,0.00021614,2]
[312758964,1706199714365,1850.0,0.00022223,14]
[312758965,1706199714387,345.0617,0.00022223,14]
[312758966,1706199714612,858.05378955,0.00022,2]
[312758967,1706199715917,312.8751174,0.00022,2]
[312758968,1706199719032,235.18894409,0.00020486,2]
[312758969,1706199719419,163.94,0.00021635,2]
[312758970,1706199723612,84.88044896,0.00022209,2]
[312758971,1706199725944,1228.7364261,0.00020486,2]
[312758972,1706199726051,1792.6940862,0.00020486,2]
[312758973,1706199726075,3345.77196929,0.00020486,2]
[312758974,1706199726607,610.8682776,0.00021,2]
[312758975,1706199732615,356.53256981,0.00020486,2]
[312758976,1706199736528,306.42057278,0.00020486,2]
[312758977,1706199742605,417.9260144,0.00021,2]
[312758978,1706199743939,447.02203881,0.00020486,2]
[312758979,1706199745646,1099.3215382,0.00020486,2]
[312758980,1706199748301,155.0,0.00020486,2]
[312758981,1706199752524,235.18894409,0.00020486,2]
[312758982,1706199763631,1095.74754023,0.00020486,2]
[312758983,1706199768134,155.0,0.00020486,2]
[312758984,1706199776529,235.18894409,0.00020486,2]
[312758985,1706199782134,220.09282609,0.00020486,2]
[312758986,1706199800534,233.8527935,0.00020486,2]
[312758987,1706199810268,941.84462436,0.0002162,2]
[312758988,1706199811208,310.6035145,0.0002162,2]
[312758989,1706199813275,5451.01098359,0.0002162,2]
[312758990,1706199814281,502.11703257,0.0002162,2]
[312758991,1706199814461,33804.76541887,0.0002162,2]
[312758992,1706199829789,387.51113829,0.0002162,2]
[312758993,1706199837943,3034.07105232,0.0002162,2]
[312758994,1706199838084,197.02214549,0.0002162,2]
[312758995,1706199839168,868.30882633,0.0002162,2]
[312758996,1706199841296,517.32648021,0.0002162,2]
[312758997,1706199842552,150.0,0.0002162,2]
[312758998,1706199842715,1814.35883876,0.0002162,2]
[312758999,1706199843209,188.63,0.00021526,2]
[312759000,1706199844584,10568.54913855,0.0002162,2]
[312759001,1706199845970,2000.0,0.00021564,2]
[312759002,1706199847588,1205.29326184,0.0002162,2]
[312759003,1706199848968,155.0,0.0002162,2]
[312759004,1706199852162,458.44816547,0.0002162,2]
[312759005,1706199858423,1854.94837168,0.0002162,2]
[312759006,1706199859633,4494.01241334,0.0002162,2]
[312759007,1706199867157,3148.81801246,0.0002162,2]
[312759008,1706199907759,2000.0,0.00021059,2]
[312759009,1706199937235,968.16921619,0.0002162,2]
[312759010,1706199942820,371.72065286,0.0002162,2]
[312759011,1706199944371,530.06908388,0.0002162,2]
[312759012,1706199947245,4252.75750706,0.0002162,2]
[312759013,1706200004349,1000.0,0.00021594,2]
[312759014,1706200020300,155.0,0.00021594,2]
[312759015,1706200040497,155.0,0.0002162,2]
[312759016,1706200059092,157.11088226,0.00021539,2]
[312759017,1706200083288,150.78,0.00021597,2]
[312759018,1706200092552,412.7,0.00019679,2]
[312759019,1706200117691,4494.01241334,0.0002162,2]
[312759020,1706200133027,250.0,0.00021576,2]
[312759021,1706200147084,-1205.29326184,0.00021621,2]
[312759022,1706200147105,-204.63822999,0.00021624,2]
[312759023,1706200147124,-150.0,0.00021638,2]
[312759024,1706200147144,-3488.75772095,0.00021639,2]
[312759025,1706200149246,-18588.3566807,0.00021639,2]
[312759026,1706200152143,-1005.95559835,0.00021639,2]
[312759027,1706200152164,-1402.05,0.00021644,2]
[312759028,1706200152185,-1007.82,0.00021648,2]
[312759029,1706200152206,-160.86,0.00021754,2]
[312759030,1706200152228,-160.86,0.00021896,2]
[312759031,1706200152247,-250.0,0.00021918,2]
[312759032,1706200152267,-412.7,0.00021943,2]
[312759033,1706200152286,-150.0,0.00022,2]
[312759034,1706200152305,-999.99,0.00022,2]
[312759035,1706200152323,-150.99,0.00022,2]
[312759036,1706200152342,-499.99,0.00022,2]
[312759037,1706200152362,-160.86,0.00022037,2]
[312759038,1706200152381,-181.65,0.00022132,2]
[312759039,1706200152404,-160.86,0.00022179,2]
[312759040,1706200152423,-1027.9656,0.00022216,2]
[312759041,1706200152443,-160.86,0.00022321,2]
[312759042,1706200152463,-388.37,0.00022339,2]
[312759043,1706200152482,-3067.86,0.00022346,2]
[312759044,1706200152501,-6804.65,0.0002239,2]
[312759045,1706200152521,-400.0,0.000224,8]
[312759046,1706200152543,-1402.05,0.00022445,2]
[312759047,1706200152562,-1048.82363799,0.00022446,2]
[312759048,1706200152583,-160.86,0.00022462,2]
[312759049,1706200155161,-900.0,0.000225,8]
[312759050,1706200155183,-176.54,0.00022548,2]
[312759051,1706200155202,-1400.0,0.000226,8]
[312759052,1706200155222,-160.86,0.00022604,2]
[312759053,1706200155242,-150.0,0.00022627,2]
[312759054,1706200155262,-150.0,0.00022631,2]
[312759055,1706200155281,-150.0,0.00022639,2]
[312759056,1706200155301,-150.0,0.00022643,2]
[312759057,1706200155319,-1048.82363799,0.00022653,2]
[312759058,1706200155339,-150.0,0.00022661,2]
[312759059,1706200155360,-972.88787741,0.00022662,2]
[312759060,1706200155378,-262.37904595,0.00022662,2]
[312759061,1706200155397,-749.61199031,0.00022662,2]
[312759062,1706200155416,-525.41882118,0.00022662,2]
[312759063,1706200155434,-301.25336037,0.00022662,2]
[312759064,1706200155453,-608.31890372,0.00022662,2]
[312759065,1706200155474,-1164.4409,0.00022664,2]
[312759066,1706200155499,-2306.89,0.00022664,2]
[312759067,1706200155518,-52980.368,0.00022664,2]
[312759068,1706200155536,-2181.525,0.00022664,2]
[312759069,1706200155556,-623.06579625,0.00022668,2]
[312759070,1706200155576,-150.0,0.00022671,2]
[312759071,1706200155596,-150.0,0.00022678,2]
[312759072,1706200155615,-150.0,0.00022678,2]
[312759073,1706200155635,-150.0,0.0002269,2]
[312759074,1706200155655,-150.0,0.00022695,2]
[312759075,1706200155675,-150.0,0.00022697,2]
[312759076,1706200155695,-150.0,0.00022699,2]
[312759077,1706200155715,-1900.0,0.000227,8]
[312759078,1706200155735,-150.0,0.00022703,2]
[312759079,1706200155755,-150.0,0.00022705,2]
[312759080,1706200155773,-150.0,0.00022705,2]
[312759081,1706200155793,-150.0,0.00022708,2]
[312759082,1706200155813,-150.0,0.00022721,2]
[312759083,1706200155833,-150.0,0.00022721,2]
[312759084,1706200155856,-150.0,0.00022725,2]
[312759085,1706200155876,-150.0,0.00022726,2]
[312759086,1706200155896,-150.0,0.00022728,2]
[312759087,1706200155921,-150.0,0.00022729,2]
[312759088,1706200155940,-150.0,0.00022735,2]
[312759089,1706200155961,-150.0,0.0002274,2]
[312759090,1706200155985,-160.86,0.00022746,2]
[312759091,1706200156008,-150.0,0.00022748,2]
[312759092,1706200156028,-524.21526262,0.00022762,2]
[312759093,1706200156048,-155.0,0.00022762,2]
[312759094,1706200156067,-232.81974889,0.00022762,2]
[312759095,1706200162232,-1214.98618503,0.00022761,2]
[312759096,1706200162251,-421.40487404,0.00022762,2]
[312759097,1706200162270,-400.55654245,0.00022762,2]
[312759098,1706200162288,-158.84571897,0.00022762,2]
[312759099,1706200162309,-230.76633215,0.00022762,2]
[312759100,1706200162329,-172.09680919,0.00022762,2]
[312759101,1706200162363,-171.63288693,0.00022762,2]
[312759102,1706200162382,-310.33868222,0.00022762,2]
[312759103,1706200162401,-941.08573838,0.00022762,2]
[312759104,1706200162421,-499.17395205,0.00022762,2]
[312759105,1706200162440,-386.88042025,0.00022762,2]
[312759106,1706200162459,-196.74278904,0.00022762,2]
[312759107,1706200162481,-309.68661735,0.00022762,2]
[312759108,1706200162503,-315.71243182,0.00022762,2]
[312759109,1706200168719,176.54,0.00022,2]
[312759110,1706200170195,422.69016366,0.00021879,2]
[312759146,1706200232116,-200.0,0.00021874,2]
[312759147,1706200232126,-27.68983634,0.00021879,2]
[312759148,1706200232136,-160.86,0.00022026,2]
[312759149,1706200232146,-176.54,0.00022548,2]
[312759150,1706200232155,-36.33405654,0.00022664,2]
[312759151,1706200232167,-639.29473813,0.00022664,2]
[312759152,1706200232180,-1824.37120533,0.00022664,2]
[312759153,1706200232189,-1500.0,0.00022743,2]
[312759154,1706200232198,-1290.11610473,0.00022762,2]
[312759155,1706200232208,-360.84585383,0.00022762,2]
[312759156,1706200232217,-9711.54303083,0.00022762,2]
[312759157,1706200232227,-1809.64077163,0.00022762,2]
[312759158,1706200232237,-457.84843758,0.00022762,2]
[312759159,1706200232257,-1851.56305601,0.00022762,2]
[312759160,1706200232267,-1157.0277122,0.00022762,2]
[312759161,1706200232276,-200.50996164,0.00022762,2]
[312759162,1706200232285,-6945.58730815,0.00022763,2]
[312759163,1706200232294,-764.37946186,0.00022763,2]
[312759164,1706200232303,-18494.53588887,0.00022764,2]
[312759165,1706200232316,-119328.24307692,0.00022764,2]
[312759166,1706200232325,-16571.42166052,0.00022767,2]
[312759167,1706200232334,-161.45820445,0.00022768,2]
[312759168,1706200232343,-538.7113452,0.00022768,2]
[312759169,1706200232353,-492.83979718,0.00022768,2]
[312759170,1706200232362,-150.0,0.00022771,2]
[312759171,1706200232370,-150.0,0.00022772,2]
[312759172,1706200232380,-150.0,0.00022783,2]
[312759173,1706200232389,-150.0,0.00022795,2]
[312759174,1706200232398,-150.0,0.00022798,2]
[312759175,1706200232408,-150.0,0.00022799,2]
[312759176,1706200232417,-2400.0,0.000228,8]
[312759177,1706200232426,-150.0,0.00022802,2]
[312759178,1706200232436,-1500.0,0.00022813,2]
[312759179,1706200232445,-150.0,0.00022819,2]
[312759180,1706200232454,-150.0,0.00022819,2]
[312759181,1706200232465,-150.0,0.0002282,2]
[312759182,1706200232474,-150.0,0.0002282,2]
[312759183,1706200232483,-150.0,0.00022828,2]
[312759184,1706200232493,-150.0,0.00022833,2]
[312759185,1706200232502,-150.0,0.00022844,2]
[312759186,1706200232511,-300.0,0.00022847,2]
[312759187,1706200232520,-1500.0,0.00022851,2]
[312759188,1706200232529,-1500.0,0.00022851,2]
[312759189,1706200232538,-150.0,0.00022855,2]
[312759195,1706200232735,-150.0,0.00022856,2]
[312759196,1706200232745,-150.0,0.00022858,2]
[312759197,1706200232754,-150.0,0.00022878,2]
[312759198,1706200232763,-150.0,0.00022883,2]
[312759199,1706200232772,-150.0,0.00022885,2]
[312759200,1706200232781,-150.0,0.00022886,2]
[312759201,1706200232790,-150.0,0.00022886,2]
[312759202,1706200232799,-150.0,0.00022889,2]
[312759203,1706200232808,-336.24697309,0.00022889,2]
[312759204,1706200232817,-150.0,0.00022894,2]
[312759205,1706200232826,-150.0,0.00022895,2]
[312759206,1706200232835,-36653.88869484,0.00022898,2]
[312759207,1706200232851,-2470.0,0.00022898,2]
[312759208,1706200232862,-673.29832,0.00022898,2]
[312759209,1706200232882,-605.0,0.00022898,2]
[312759210,1706200232893,-757.37624441,0.00022898,2]
[312759211,1706200232906,-3987.1338,0.00022898,2]
[312759212,1706200232921,-1000.0,0.00022898,2]
[312759213,1706200233438,-1558.28841733,0.00022898,2]
[312759214,1706200233450,-770.0,0.00022898,2]
[312759219,1706200238064,-465.55918947,0.00022898,2]
[312759220,1706200238127,-4205.07043395,0.00022898,2]
[312759221,1706200238144,-1000.0,0.00022898,2]
[312759222,1706200238160,-12682.5809,0.00022898,2]
[312759223,1706200238177,-545.9016,0.00022898,2]
[312759224,1706200238191,-20821.42514603,0.00022898,2]
[312759225,1706200238214,-803.125,0.00022898,2]
[312759226,1706200238234,-863.56873737,0.00022898,2]
[312759227,1706200238263,-27706.8661166,0.00022898,2]
[312759228,1706200238273,-150.0,0.00022899,2]
[312759229,1706200238283,-16225.03245679,0.000229,2]
[312759230,1706200238292,-1000.0,0.000229,2]
[312759231,1706200238302,-195.10400093,0.000229,2]
[312759232,1706200238311,-5035.49964234,0.000229,2]
[312759233,1706200238320,-185.00571935,0.000229,2]
[312759234,1706200238330,-153.85696094,0.000229,2]
[312759235,1706200238339,-157.11088226,0.000229,2]
[312759236,1706200238348,-332.21801793,0.000229,2]
[312759237,1706200238358,-680.02145246,0.000229,2]
[312759238,1706200238367,-4949.59913339,0.000229,2]
[312759269,1706200238666,-1135.85387819,0.000229,2]
[312759272,1706200238685,-558.20785079,0.000229,2]
[312759276,1706200238710,-13487.67397718,0.000229,2]
[312759278,1706200238721,-169.6775118,0.000229,2]
[312759280,1706200238730,-400.0,0.000229,8]
[312759282,1706200238739,-300.0,0.00022911,2]
[312759284,1706200238748,-150.0,0.00022929,2]
[312759286,1706200238757,-1500.0,0.00022947,2]
[312759288,1706200238766,-800.0,0.00022959,2]
[312759290,1706200238779,-151.12841012,0.0002299,2]
[312759292,1706200238788,-1500.0,0.00022993,2]
[312759294,1706200238797,-376.165677,0.00022996,2]
[312759296,1706200238807,-251.70188647,0.00022996,2]
[312759298,1706200238816,-567.04871616,0.00022996,2]
[312759300,1706200238825,-389.08953638,0.00022996,2]
[312759302,1706200238834,-2142.12617352,0.00022996,2]
[312759304,1706200238843,-400.0,0.00022996,2]
[312759306,1706200238852,-156.77132149,0.00022996,2]
[312759308,1706200238861,-950.52621198,0.00022996,2]
[312759310,1706200238871,-155.91294937,0.00022996,2]
[312759312,1706200238880,-235.65900379,0.00022996,2]
[312759314,1706200238890,-155.20212548,0.00022997,2]
[312759316,1706200238898,-26764.82697195,0.00022997,2]
[312759318,1706200238908,-155.96209899,0.00022997,2]
[312759320,1706200238918,-473.29314073,0.00022997,2]
[312759322,1706200238929,-642.01750535,0.00022997,2]
[312759324,1706200238938,-368.01428488,0.00022997,2]
[312759326,1706200238948,-169.9432632,0.00022997,2]
[312759328,1706200238957,-343.09423097,0.00022997,2]
[312759330,1706200238967,-156.87479774,0.00022997,2]
[312759332,1706200238977,-5773.63343012,0.00022997,2]
[312759334,1706200238986,-157.9801797,0.00022997,2]
[312759336,1706200238995,-640.3877892,0.00022997,2]
[312759338,1706200239004,-155.61945522,0.00022997,2]
[312759340,1706200239013,-155.0,0.00022997,2]
[312759342,1706200239022,-269.92500188,0.00022997,2]
[312759344,1706200239033,-155.93192333,0.00022997,2]
[312759346,1706200239044,-1256.24889353,0.00022997,2]
[312759348,1706200239055,-157.87469733,0.00022997,2]
[312759351,1706200239067,-260.19907905,0.00022997,2]
[312759353,1706200239079,-1224.40629802,0.00022997,2]
[312759355,1706200239088,-229.59242719,0.00022997,2]
[312759356,1706200239097,-2916.89243027,0.00022997,2]
[312759358,1706200239107,-637.65870148,0.00022997,2]
[312759360,1706200239118,-164.0104164,0.00022997,2]
[312759362,1706200239127,-207.89868806,0.00022997,2]
[312759365,1706200239136,-382.5072126,0.00022997,2]
[312759367,1706200239145,-7154.67400378,0.00022997,2]
[312759368,1706200239155,-250.33246589,0.00022997,2]
[312759371,1706200239165,-2309.13609472,0.00022997,2]
[312759373,1706200239176,-155.0,0.00022997,2]
[312759375,1706200239186,-2022.3864367,0.00022998,2]
[312759377,1706200239196,-265.75241527,0.00022998,2]
[312759379,1706200239205,-7791.36306763,0.00022998,2]
[312759381,1706200239214,-2904.73184658,0.00022998,2]
[312759382,1706200239223,-1059.25794789,0.00022998,2]
[312759383,1706200239233,-14900.36082871,0.00022998,2]
[312759384,1706200239242,-486.44925414,0.00022998,2]
[312759385,1706200239251,-245.60070442,0.00022998,2]
[312759386,1706200239261,-655.21645281,0.00022998,2]
[312759387,1706200239269,-155.0,0.00022998,2]
[312759388,1706200239279,-3591.43127721,0.00022998,2]
[312759389,1706200239287,-883.73608647,0.00022998,2]
[312759391,1706200239297,-155.0,0.00022998,2]
[312759393,1706200239306,-1050.022241,0.00022998,2]
[312759395,1706200239317,-875.56427091,0.00022998,2]
[312759396,1706200239326,-362.07153595,0.00022999,2]
[312759398,1706200239336,-16778.48153658,0.00022999,2]
[312759400,1706200239345,-337.96960043,0.00022999,2]
[312759402,1706200239354,-385.00214838,0.00022999,2]
[312759405,1706200239365,-273.07643202,0.00022999,2]
[312759407,1706200239375,-203.22538019,0.00022999,2]
[312759409,1706200239385,-2614.37433871,0.00022999,2]
[312759410,1706200239394,-1710.95401307,0.00022999,2]
[312759412,1706200239404,-652.20813979,0.00022999,2]
[312759415,1706200239414,-308.22134209,0.00022999,10]
[312759417,1706200239424,-308.22134209,0.00022999,10]
[312759418,1706200239433,-500.0,0.00022999,2]
[312759420,1706200239442,-464.90767226,0.00022999,2]
[312759422,1706200239451,-500.0,0.00022999,2]
[312759424,1706200239460,-179.68844602,0.00022999,2]
[312759427,1706200239471,-500.0,0.00022999,2]
[312759429,1706200239482,-500.0,0.00022999,2]
[312759430,1706200239493,-500.0,0.00022999,2]
[312759432,1706200239505,-500.0,0.00022999,2]
[312759435,1706200239514,-500.0,0.00022999,2]
[312759437,1706200239523,-354.60650201,0.00022999,2]
[312759438,1706200239533,-500.0,0.00022999,2]
[312759440,1706200239542,-500.0,0.00022999,2]
[312759442,1706200239551,-590.41585779,0.00022999,2]
[312759445,1706200239561,-500.0,0.00022999,2]
[312759447,1706200239571,-500.0,0.00022999,2]
[312759448,1706200239581,-456.50573179,0.00022999,2]
[312759450,1706200239590,-500.0,0.00022999,2]
[312759452,1706200239599,-500.0,0.00022999,2]
[312759454,1706200239608,-500.0,0.00022999,2]
[312759456,1706200239618,-500.0,0.00022999,2]
[312759458,1706200239627,-500.0,0.00022999,2]
[312759460,1706200239636,-447.26471223,0.00022999,2]
[312759462,1706200239646,-500.0,0.00022999,2]
[312759464,1706200239655,-500.0,0.00022999,2]
[312759466,1706200239665,-500.0,0.00022999,2]
[312759468,1706200239674,-299.77213913,0.00022999,2]
[312759470,1706200239683,-500.0,0.00022999,2]
[312759472,1706200239692,-500.0,0.00022999,2]
[312759475,1706200239701,-500.0,0.00022999,2]
[312759477,1706200239711,-500.0,0.00022999,2]
[312759478,1706200239720,-500.0,0.00022999,2]
[312759481,1706200239729,-500.0,0.00022999,2]
[312759483,1706200239738,-500.0,0.00022999,2]
[312759485,1706200239747,-500.0,0.00022999,2]
[312759487,1706200239757,-500.0,0.00022999,2]
[312759489,1706200239767,-500.0,0.00022999,2]
[312759491,1706200239776,-500.0,0.00022999,2]
[312759493,1706200239785,-500.0,0.00022999,2]
[312759495,1706200239794,-500.0,0.00022999,2]
[312759497,1706200239803,-500.0,0.00022999,2]
[312759499,1706200239813,-240.88763132,0.00022999,2]